Cogmind - Beta 13 @@@ ROGUE MODE // 2024.07.13 @ 22:38:20 Player: koksu120 Result: Destroyed by G-34 Mercenary with Small Laser Performance ------------- Evolutions (1) 500 Regions Visited (3) 600 Robots Destroyed (15) 75 Value Destroyed (461) 461 Prototype IDs (0) 0 Alien Tech Used (0) 0 Bonus (-110) -110 TOTAL SCORE: 1526 Bonus ------- Follower Combat Kills 86 Friendly Fire -196 Cogmind --------- Core Integrity 0/400 Matter 140/300 Energy 100/100 System Corruption 1% Temperature Cool (6) Movement Core (200) Ox3 Location -9/Storage Parts ------- > --- POWER (1) -------- (None) > --- PROPULSION (3) --- (None) > --- UTILITY (3) ------ Medium Storage Unit Signal Interpreter > --- WEAPON (2) ------- (None) > --- INVENTORY (10) --- Compact Wheel Sensor Array Light Armor Plating Hardened Light Armor Plating Hardened Light Armor Plating Hardened Light Armor Plating Peak State ------------ > --- POWER ------------ Ion Engine > --- PROPULSION ------- Improved Treads Improved Treads Improved Treads > --- UTILITY ---------- Medium Storage Unit Signal Interpreter Hardened Light Armor Plating > --- WEAPON ----------- EM Pulse Gun Light Assault Rifle > --- INVENTORY -------- Compact Wheel Sensor Array Light Armor Plating Hardened Light Armor Plating Hardened Light Armor Plating Hardened Light Armor Plating Hardened Light Armor Plating Assault Rifle Grenade Launcher [Rating: 14] Favorites ----------- Power Ion Engine Engine Ion Engine Propulsion Light Treads Treads Light Treads Leg Aluminum Leg Wheel Compact Wheel Hover Unit Hover Unit Utility Medium Storage Unit Device Sensor Array Storage Medium Storage Unit Processor Signal Interpreter Protection Light Armor Plating Weapon Light Assault Rifle Energy Gun EM Pulse Gun Ballistic Gun Light Assault Rifle Launcher Grenade Launcher Special Weapon Mining Laser Slashing Weapon Katana Build | -11 -10 -9 -9 ------- Run | Yrd Mat Mat Sto Slots Evolved 2 | . . 2 . Power . | . . . . Propulsion 1 | . . 1 . Utility 1 | . . 1 . Weapon . | . . . . Parts Attached 33 | 5 8 7 13 Power 3 | 1 1 . 1 Engine 3 | 1 1 . 1 Core . | . . . . Reactor . | . . . . Propulsion 12 | 2 2 5 3 Treads 5 | 2 . . 3 Leg 3 | . . 3 . Wheel 1 | . . 1 . Hover 3 | . 2 1 . Flight . | . . . . Utility 6 | . 3 1 2 Device 1 | . 1 . . Storage 1 | . 1 . . Processor 1 | . . 1 . Hackware . | . . . . Protection 3 | . 1 . 2 Artifact . | . . . . Weapon 12 | 2 2 1 7 Energy Gun 3 | 1 . 1 1 Energy Cannon . | . . . . Ballistic Gun 5 | 1 1 . 3 Ballistic Cannon . | . . . . Launcher 2 | . . . 2 Special Weapon 1 | . 1 . . Impact Weapon . | . . . . Slashing Weapon 1 | . . . 1 Piercing Weapon . | . . . . Special Melee Weapon . | . . . . Unidentified Prototypes . | . . . . Parts Lost 12 | . . 2 10 Power . | . . . . Propulsion 4 | . . 1 3 Utility 2 | . . . 2 Weapon 6 | . . 1 5 Highest Loss Streak 10 | . . 2 10 To Critical Strikes . | . . . . Average Slot Usage (%) 89 | . 94 86 84 Engine 11 | . 14 11 8 Treads 13 | . 19 . 17 Leg 3 | . . 3 7 Wheel 2 | . . 10 . Hover 6 | . 7 12 . Device 5 | . 2 11 3 Storage 12 | . 14 11 11 Processor 6 | . . 11 11 Protection 5 | . 8 . 6 Energy Gun 6 | . 10 1 4 Ballistic Gun 11 | . 14 11 8 Launcher 1 | . . . 3 Special Weapon 2 | . 3 3 . Naked Turns . | . . . . Heaviest Build 24 | 14 22 17 24 Greatest Support 69 | 40 40 30 69 Greatest Overweight (x) 7 | . 7 1 5 Average Overweight (x) . | . . . . Largest Inventory Capacity 10 | 8 10 10 10 Average Capacity 9 | 8 9 10 10 Most Carried 10 | 6 10 10 10 Average Carried 7 | 4 7 7 8 Final Capacity 10 | 8 10 10 10 Final Carried 10 | 4 7 10 6 Class Distribution -------------------- 89% | Mutant 10% | Scavenger-Mutant Dominant Class ---------------- Mutant | -10/Materials Mutant | -9/Materials Mutant | -9/Storage Resources | -11 -10 -9 -9 ----------- Run | Yrd Mat Mat Sto Matter Collected 427 | 202 54 121 50 Remotely . | . . . . Salvage Created 467 | . 54 121 292 Parts 24 | . 3 9 12 Haulers Intercepted . | . . . . Recyclers Shooed . | . . . . Parts Field Recycled . | . . . . Retrieved Matter . | . . . . Parts Self-Destructed . | . . . . Prevented . | . . . . Kills | -11 -10 -9 -9 ------- Run | Yrd Mat Mat Sto Combat Hostiles Destroyed 11 | . . 3 8 Guns 4 | . . 3 1 AOE 7 | . . . 7 Classes Destroyed 7 | . 2 2 3 Recycler 1 | . 1 . . Mechanic 1 | . . . 1 Watcher 1 | . 1 . . Grunt 6 | . . 2 4 Brawler 1 | . . . 1 Duelist 3 | . . . 3 Sentry 1 | . . 1 . Thug 1 | . . . 1 Best Kill Streak 6 | . 1 2 6 Combat Bots Only 6 | . . 2 6 Max Kills in Single Turn 3 | . 1 1 3 Gunslinging . | . . . . Exploded 2 | . . . 2 Melee . | . . . . Uniques/NPCs Destroyed . | . . . . Combat | -11 -10 -9 -9 -------- Run | Yrd Mat Mat Sto Hostile Shots Fired 147 | . . 22 125 Missed 20 | . . 3 17 Damage Taken 1894 | . . 266 1628 Core 408 | . . 67 341 Absorbed by Shields . | . . . . Core Remaining (%) 100 | 100 100 . . Volleys Fired 32 | . 3 10 19 Largest 2 | . 2 2 2 Hottest 120 | . 120 120 70 Shots Fired 55 | . 5 19 31 Gun 42 | . 4 14 24 Cannon . | . . . . Launcher 7 | . . . 7 Special 6 | . 1 5 . Kinetic 35 | . 3 10 22 Thermal 6 | . 1 5 . Explosive 7 | . . . 7 Electromagnetic 7 | . 1 4 2 Robot Hit Streak 10 | . 5 7 10 Robot Miss Streak 2 | . . 2 2 Penetration Max . | . . . . Secondary Targets . | . . . . Shots Hit Robots 43 | . 5 11 27 Core Hits 43 | . 3 7 33 Critical Kills . | . . . . Critical Parts Destroyed . | . . . . Critical Strikes . | . . . . Melee Attacks 7 | . . . 7 Impact . | . . . . Slashing 7 | . . . 7 Piercing . | . . . . Sneak Attacks . | . . . . Combat Hostiles . | . . . . Follow-up Attacks . | . . . . Damage Inflicted 1498 | . 81 120 1297 Guns 301 | . 57 96 148 Cannons . | . . . . Explosions 997 | . . . 997 Melee 150 | . . . 150 Ramming 2 | . . . 2 Kinetic 218 | . 33 59 126 Thermal 48 | . 24 24 . Explosive 997 | . . . 997 Electromagnetic 83 | . 24 37 22 Impact . | . . . . Slashing 150 | . . . 150 Piercing . | . . . . Highest Corruption 1 | . . . 1 Average Corruption 1 | . . . 1 Corruption Purged . | . . . . Corruption Blocked . | . . . . Effects 1 | . . . 1 Data Loss (minor) 1 | . . . 1 Overload Shots . | . . . . Overflow Damage 6 | . . . 6 Projectiles . | . . . . Explosions . | . . . . Melee 6 | . . . 6 Knockbacks . | . . . . Impact . | . . . . Kinetic . | . . . . Secondary . | . . . . Self-Inflicted Damage 38 | . . . 38 Shots 2 | . . . 2 Rammed 1 | . . . 1 Targets Rammed 1 | . . . 1 Kicked . | . . . . Crushed . | . . . . Highest Temperature 188 | . 48 188 75 Average Temperature 53 | . 18 81 38 Received Heat Transfer 819 | . . 114 705 Siege Activations . | . . . . Robots Corrupted . | . . . . Combat Hostiles . | . . . . Parts Fried . | . . . . Impact Corruptions . | . . . . Robots Melted . | . . . . Combat Hostiles . | . . . . Parts Melted . | . . . . Heat Transferred 100 | . 50 50 . Parts Sabotaged . | . . . . Parts Stolen . | . . . . Parts Stripped . | . . . . Power Chain Reactions . | . . . . Alert | -11 -10 -9 -9 ------- Run | Yrd Mat Mat Sto Peak Influence 317 | . 12 95 317 Initial 39 | . . 4 39 Average 58 | . 6 35 147 Maximum Alert Level 1 | . . . 1 Low Security (%) 84 | 100 100 100 52 Level 1 15 | . . . 47 Level 2 . | . . . . Level 3 . | . . . . Level 4 . | . . . . Level 5 . | . . . . High Security . | . . . . Max Security . | . . . . Squads Dispatched 5 | . . 1 4 Investigation 1 | . . . 1 Extermination . | . . . . Reinforcement 2 | . . 1 1 Assault 2 | . . . 2 Garrison . | . . . . Intercept . | . . . . Searches Triggered . | . . . . Construction Impeded . | . . . . Haulers Reinforced . | . . . . Active Scanning Responses . | . . . . Cargo Convoy Interrupts . | . . . . Stealth | -11 -10 -9 -9 --------- Run | Yrd Mat Mat Sto Distress Signals . | . . . . Communications Jammed . | . . . . Distress Signals . | . . . . Times Spotted 20 | . 1 4 15 Peak Tracking Total 7 | . 1 2 7 Tactical Retreats . | . . . . Traps | -11 -10 -9 -9 ------- Run | Yrd Mat Mat Sto Traps Triggered 1 | . . . 1 Indirectly . | . . . . Trap Hack Attempts . | . . . . Triggered . | . . . . Disarmed . | . . . . Reprogrammed . | . . . . Reused . | . . . . Traps Extracted . | . . . . Installed . | . . . . Triggered . | . . . . Machines | -11 -10 -9 -9 ---------- Run | Yrd Mat Mat Sto Machines Disabled . | . . . . Max in Single Turn . | . . . . Machines Repaired . | . . . . Machines Dismantled . | . . . . Machines Sabotaged . | . . . . Overloaded Fab Kills . | . . . . Hacking | -11 -10 -9 -9 --------- Run | Yrd Mat Mat Sto Machines Accessed 3 | . 2 . 1 Terminals 3 | . 2 . 1 Fabricators . | . . . . Repair Stations . | . . . . Recycling Units . | . . . . Scanalyzers . | . . . . Garrison Access . | . . . . Total Hacks 6 | . 3 . 3 Successful 1 | . . . 1 Failed 5 | . 3 . 2 Catastrophic 1 | . 1 . . Database Lockouts . | . . . . Manual . | . . . . Terminals 6 | . 3 . 3 Fabricators . | . . . . Repair Stations . | . . . . Recycling Units . | . . . . Scanalyzers . | . . . . Garrison Access . | . . . . Terminal Hacks 1 | . . . 1 Maintenance Status 1 | . . . 1 Fabricator Hacks . | . . . . Repair Station Hacks . | . . . . Recycling Unit Hacks . | . . . . Scanalyzer . | . . . . Garrison Access Hacks . | . . . . Unauthorized Hacks . | . . . . Terminals . | . . . . Fabricators . | . . . . Repair Stations . | . . . . Recycling Units . | . . . . Scanalyzers . | . . . . Garrison Access . | . . . . Data Cores Recovered . | . . . . Used . | . . . . Hacking Detections 3 | . 2 . 1 Full Trace Events 1 | . . . 1 Feedback Events . | . . . . Feedback Blocked . | . . . . Robot Schematics Acquired . | . . . . Robots Built . | . . . . Authchips . | . . . . Time . | . . . . Total Robot Build Rating . | . . . . Part Schematics Acquired . | . . . . Parts Built . | . . . . Authchips . | . . . . Time . | . . . . Total Part Build Rating . | . . . . Parts Repaired . | . . . . Time . | . . . . Parts Recycled . | . . . . Recycled Matter . | . . . . Retrieved Matter . | . . . . Retrieved Components . | . . . . Parts Scanalyzed . | . . . . Part Schematics Acquired . | . . . . Parts Damaged . | . . . . Bothacking | -11 -10 -9 -9 ------------ Run | Yrd Mat Mat Sto Used RIF Installer . | . . . . Robots Hacked . | . . . . Non-combat . | . . . . Combat . | . . . . Robot Hacks Applied . | . . . . Relay Couplers Released . | . . . . Fabnet Peak Effective % . | . . . . Robots Rewired . | . . . . Allies Hacked . | . . . . Hacks Repelled . | . . . . Allies | -11 -10 -9 -9 -------- Run | Yrd Mat Mat Sto Total Allies 2 | . . . 2 Largest Group 2 | . . . 2 Highest-Rated Group 62 | . . . 62 Highest-Rated Ally 31 | . . . 31 Total Orders . | . . . . Ally Attacks 32 | . . . 32 Total Damage 309 | . . . 309 Kills 3 | . . . 3 Allies Corrupted . | . . . . Allies Melted . | . . . . Intel | -11 -10 -9 -9 ------- Run | Yrd Mat Mat Sto Robot Analysis Total . | . . . . Derelict Logs Recovered . | . . . . Drone Launches . | . . . . Drone Recoveries . | . . . . Exploration | -11 -10 -9 -9 ------------- Run | Yrd Mat Mat Sto Turns Passed 653 | 11 265 167 210 Spaces Moved 347 | 3 155 106 83 Core 7 | . 2 . 5 Treads 148 | 3 106 . 39 Legs 49 | . . 10 39 Wheels 72 | . . 72 . Hover 71 | . 47 24 . Flight . | . . . . Fastest Speed 100 | 160 116 100 120 Average Speed 136 | 160 149 107 149 Slowest Speed 400 | 160 400 121 300 Overloaded Moves . | . . . . Propulsion Burnouts . | . . . . Robots Hopped . | . . . . Cave-ins Triggered . | . . . . Exploration Rate (%) 15 | 2 29 12 18 Regions Visited 3 Branch Regions 1 Pre-discovered Areas . | . . . . Known Exits Taken 1 | . . 1 . Unknown Exits Taken 2 | 1 1 . . Scrap Searched . | . . . . Spaces Dug . | . . . . Terrain Destroyed 32 | . . 2 30 Melee . | . . . . Projectile 2 | . . 2 . AOE 30 | . . . 30 Terrain Rammed . | . . . . Walls Destroyed . | . . . . Machines Disabled . | . . . . Actions | -11 -10 -9 -9 --------- Run | Yrd Mat Mat Sto Total 455 | 9 184 133 129 Wait . | . . . . Move 344 | 2 154 105 83 Hop . | . . . . Pick Up 21 | . 11 8 2 Fast Attach 5 | . . 2 3 Attach 19 | 2 6 5 6 Detach . | . . . . Swap 9 | 3 2 . 4 Drop 17 | 2 8 3 4 Fire 32 | . 3 10 19 Melee 7 | . . . 7 Ram 1 | . . . 1 Kick . | . . . . Crush . | . . . . Escape Stasis . | . . . . Rewire . | . . . . Trap . | . . . . Miscellaneous . | . . . . Route ------- -11/Scrapyard -10/Materials -9/Materials -9/Storage History --------- Turn | Location | Event 6 | -11/Scrapyard | Discovered new exit (range 1) 12 | -11/Scrapyard | Entered Materials 251 | -10/Materials | Discovered new exit (range 10) 277 | -10/Materials | Entered another Materials area 277 | -9/Materials | Evolved 2 slots: Propulsion x1, Utility x1 304 | -9/Materials | Discovered new exit (range 6) 318 | -9/Materials | Build established: Mutant 443 | -9/Materials | Identified exit to Storage 444 | -9/Materials | Entered Storage 490 | -9/Storage | Met a pair of Derelict thieves 613 | -9/Storage | Core integrity fell below 50% 639 | -9/Storage | Core integrity fell below 20% 654 | -9/Storage | Destroyed by G-34 Mercenary with Small Laser Last Messages --------------- 00616_ L-31 Rogue destroyed. 00618_ U-05 Engineer builds a Wall. 00618_ Assault Rifle destroyed. 00619_ Acquired Katana. 00624_ Acquired 49 matter. 00628_ U-05 Engineer builds a Wall. 00630_ K-01 Serf collects debris. 00632_ Imp. Treads destroyed. 00633_ K-01 Serf collects debris. 00640_ Destroyed Aluminum Leg. 00641_ G-34 Mercenary destroyed. 00645_ System corrupted: Component data lost. 00645_ K-01 Serf collects debris. 00647_ The unstable cave ceiling collapses. 00647_ U-05 Engineer builds a Door. 00648_ K-01 Serf collects debris. 00650_ Hrd. Light Armor Plating destroyed. 00651_ K-01 Serf collects debris. 00652_ Katana destroyed. 00654_ Slammed into G-47 Trooper. Map ----- +----------------------------------------------------+ | ?????????????????????????????????????????????????? | | ?????????????????????????????????????????????????? | | ?????????????????????????????????????????????????? | | ?????????????????????????????????????????????????? | | ?????????????????????????????????????????????????? | | ?????????????????????????????????????????????????? | | ?????????????????????????????????????????????????? | | ?????????????????????????????????????????????????? | | ?????????????????????????????????????????????????? | | ?????????????????????????????????????????????????? | | ?????????????????????????????????????????????????? | | ?????????????????????????????????????????????????? | | ?????????????????????????????????????????????????? | | ?????????????????????????????????????????????????? | | ?????????????????????????????????????????????????? | | ?????????????????????????????????????????????????? | | ?????????????????????????????????????????????????? | | ?????????????????????????????????????????????????? | | ?????????????????????????????????????????????????? | | ????????????????????#????????????????????????????? | | ??????????????????###%???????????????????????????? | | ??????????????????# #!#####??????????????????????? | | ??????????????????# #%# #??????????????????????? | | ??????????????????#!#%#= ####???????????????????? | | ????????????????###*#+#% # ##########??????????? | | ????????????????# % =g*=@g #??????????? | | ????????????????# *!== #??????????? | | ????????????????# %= [! # #??????????? | | ????????????????# % k #??????????? | | ????????????????# = # #??????????? | | ????????????????# % # #??????????? | | ????????????????# # #??????????? | | ????????????????# # + #??????????? | | ????????????????# # # #??????????? | | ????????????????########## ##########??????????? | | ?????????????????????????# #########???????????? | | ?????????????????????????# # # *#???????????? | | ?????????????????????????# # " #???????????? | | ?????????????????????????#^ # === =#???????????? | | ?????????????????????????# / " #???????????? | | ?????????????????????????# ##T# == #???????????? | | ?????????????????????????# #### = =#???????????? | | ?????????????????????????# #??######???????????? | | ?????????????????######### #???????????????????? | | ?????????????????#! # #???????????????????? | | ?????????????????# # #???????????????????? | | ?????????????????# # #???????????????????? | | ?????????????????# # ########????????????? | | ?????????????????# """ # #????????????? | | ?????????????????# """ + #????????????? | +----------------------------------------------------+ Best States ------------- Heat Dissipation 28 Energy Generation 10 Energy Capacity 250 Matter Stores 272 Matter Capacity 300 Sight Range 16 Robot Scan Range 14 Terrain Scan Density 10 Armor Coverage 150 Evasion (%) 50 Recoil Reduction 3 Item Schematics ----------------- None Robot Schematics ------------------ None Fabricated ------------ Nothing Alien Tech Used ----------------- None Achievements -------------- Backstab Challenges ------------ None Game ------ Seed SensorHoverPlating Manual? 0 Play Time 00:11:05 Cumulative 12.1 hours Start 2024.07.13 @ 22:30:19 End 2024.07.13 @ 22:38:20 Sessions 1 Manual Loads 0 Difficulty Rogue Special Mode None Game No. 24 Rogue 24 Adventurer 0 Explorer 0 Win Type - Total 0 Types 0/0/0/0/0/0/0/0/0 Lore% 15 Gallery% 22 Achievement% 15 Wizard Run 0 Options --------- Layout 0 ASCII 0 Keyboard 0 Movement Mouse Keybinds 0 Fullscreen 1 Font 18/X11Bold Map View 38x25 Zoom Use 100% Tactical HUD 1 Map Filters NONE Filters NONE Steam 1 RUN: 6c89e850-1149-433f-a3fd-fd1928573674